[Event "KNSB Bekerfinale 2022-2023"]
[Site "Utrecht, Netherlands"]
[Date "2023.05.18"]
[Round "2.2"]
[White "Pavlidis, Antonios"]
[Black "Pruijssers, Roeland"]
[Result "1-0"]
[TimeControl "100 minutes + increment 10 seconds"]
[WhiteTitle "GM"]
[BlackTitle "GM"]
[WhiteFideId "4212312"]
[BlackFideId "10130108"]
[WhiteElo "2559"]
[BlackElo "2534"]

1. e4 {[%clk 01:40:17]} {[%emt 00:00:02]} e5 {[%clk 01:40:10]} {[%emt
00:00:10]} 2. Nc3 {[%clk 01:39:32]} {[%emt 00:00:55]} Nf6 {[%clk 01:40:04]}
{[%emt 00:00:15]} 3. d4 {[%clk 01:39:35]} {[%emt 00:00:08]} exd4 {[%clk
01:39:58]} {[%emt 00:00:17]} 4. Qxd4 {[%clk 01:39:39]} {[%emt 00:00:06]} Nc6
{[%clk 01:40:01]} {[%emt 00:00:07]} 5. Qd3 {[%clk 01:39:41]} {[%emt 00:00:08]}
Bb4 {[%clk 01:39:46]} {[%emt 00:00:25]} 6. Bd2 {[%clk 01:38:21]} {[%emt
00:01:30]} O-O {[%clk 01:39:17]} {[%emt 00:00:39]} 7. O-O-O {[%clk 01:38:18]}
{[%emt 00:00:12]} Re8 {[%clk 01:37:54]} {[%emt 00:01:34]} 8. Nge2 {[%clk
01:37:18]} {[%emt 00:01:09]} d6 {[%clk 01:23:58]} {[%emt 00:14:06]} 9. h3
{[%clk 01:35:04]} {[%emt 00:02:24]} b5 {[%clk 01:06:27]} {[%emt 00:17:42]} 10.
Bg5 {[%clk 01:18:55]} {[%emt 00:16:19]} Ne5 {[%clk 00:57:29]} {[%emt 00:09:07]}
11. Qg3 {[%clk 01:14:52]} {[%emt 00:04:13]} Bxc3 {[%clk 00:54:44]} {[%emt
00:02:56]} 12. Nxc3 {[%clk 01:14:42]} {[%emt 00:00:20]} b4 {[%clk 00:54:49]}
{[%emt 00:00:06]} 13. Bxf6 {[%clk 01:11:24]} {[%emt 00:03:27]} Qxf6 {[%clk
00:54:56]} {[%emt 00:00:03]} 14. Nd5 {[%clk 01:11:27]} {[%emt 00:00:06]} Qd8
{[%clk 00:55:01]} {[%emt 00:00:05]} 15. f4 {[%clk 01:04:35]} {[%emt 00:07:02]}
Nd7 {[%clk 00:36:07]} {[%emt 00:19:04]} 16. Bb5 {[%clk 01:00:47]} {[%emt
00:03:58]} Rb8 {[%clk 00:34:19]} {[%emt 00:01:58]} 17. Bc6 {[%clk 00:59:41]}
{[%emt 00:01:16]} Rxe4 {[%clk 00:30:08]} {[%emt 00:04:20]} 18. Rhe1 {[%clk
00:59:20]} {[%emt 00:00:31]} Nc5 {[%clk 00:27:44]} {[%emt 00:02:35]} 19. Rxe4
{[%clk 00:45:36]} {[%emt 00:13:54]} Nxe4 {[%clk 00:27:51]} {[%emt 00:00:03]} 20.
Qe3 {[%clk 00:45:43]} {[%emt 00:00:03]} Nc5 {[%clk 00:25:26]} {[%emt 00:02:35]}
21. f5 {[%clk 00:43:51]} {[%emt 00:02:03]} f6 {[%clk 00:17:33]} {[%emt
00:08:03]} 22. g4 {[%clk 00:18:18]} {[%emt 00:25:42]} Bd7 {[%clk 00:17:22]}
{[%emt 00:00:20]} 23. Bxd7 {[%clk 00:17:07]} {[%emt 00:01:22]} Nxd7 {[%clk
00:15:39]} {[%emt 00:01:53]} 24. Qxa7 {[%clk 00:16:07]} {[%emt 00:01:10]} c6
{[%clk 00:14:08]} {[%emt 00:01:40]} 25. Nc7 {[%clk 00:14:11]} {[%emt 00:02:06]}
d5 {[%clk 00:13:57]} {[%emt 00:00:22]} 26. Nxd5 {[%clk 00:13:20]} {[%emt
00:01:01]} cxd5 {[%clk 00:13:05]} {[%emt 00:01:01]} 27. Rxd5 {[%clk 00:13:24]}
{[%emt 00:00:06]} Qe7 {[%clk 00:13:13]} {[%emt 00:00:02]} 28. Rxd7 {[%clk
00:13:12]} {[%emt 00:00:22]} Qe1+ {[%clk 00:13:21]} {[%emt 00:00:01]} 29. Rd1
{[%clk 00:13:16]} {[%emt 00:00:07]} Qg3 {[%clk 00:13:18]} {[%emt 00:00:12]} 30.
Qd7 {[%clk 00:09:25]} {[%emt 00:04:00]} h6 {[%clk 00:13:22]} {[%emt 00:00:07]}
31. Qd6 {[%clk 00:09:10]} {[%emt 00:00:25]} Qe3+ {[%clk 00:13:29]} {[%emt
00:00:03]} 32. Kb1 {[%clk 00:09:18]} {[%emt 00:00:03]} Rb6 {[%clk 00:12:03]}
{[%emt 00:01:36]} 33. Qd3 {[%clk 00:09:00]} {[%emt 00:00:26]} Qf2 {[%clk
00:11:56]} {[%emt 00:00:18]} 34. b3 {[%clk 00:07:37]} {[%emt 00:01:34]} Kh7
{[%clk 00:11:48]} {[%emt 00:00:18]} 35. Qc4 {[%clk 00:06:26]} {[%emt 00:01:21]}
Rb8 {[%clk 00:10:47]} {[%emt 00:01:11]} 36. Rd7 {[%clk 00:04:09]} {[%emt
00:02:28]} Qg3 {[%clk 00:10:30]} {[%emt 00:00:27]} 37. Qc7 {[%clk 00:03:32]}
{[%emt 00:00:46]} Qe1+ {[%clk 00:10:38]} {[%emt 00:00:02]} 38. Kb2 {[%clk
00:03:40]} {[%emt 00:00:03]} Rg8 {[%clk 00:10:40]} {[%emt 00:00:08]} 39. Qc4
{[%clk 00:02:36]} {[%emt 00:01:12]} Re8 {[%clk 00:10:01]} {[%emt 00:00:49]} 40.
Rd4 {[%clk 00:01:49]} {[%emt 00:00:57]} Rb8 {[%clk 00:09:44]} {[%emt 00:00:27]}
41. Re4 {[%clk 00:01:42]} {[%emt 00:00:17]} Qg3 {[%clk 00:08:58]} {[%emt
00:00:57]} 42. Qd3 {[%clk 00:01:32]} {[%emt 00:00:20]} Qc7 {[%clk 00:08:25]}
{[%emt 00:00:43]} 43. h4 {[%clk 00:01:32]} {[%emt 00:00:10]} Qa5 {[%clk
00:08:01]} {[%emt 00:00:33]} 44. a4 {[%clk 00:00:42]} {[%emt 00:01:01]} bxa3+
{[%clk 00:07:54]} {[%emt 00:00:17]} 45. Ka2 {[%clk 00:00:50]} Rd8 {[%clk
00:07:36]} {[%emt 00:00:27]} 46. Rd4 {[%clk 00:00:44]} {[%emt 00:00:17]} Qe5
{[%clk 00:07:38]} {[%emt 00:00:09]} 47. c3 {[%clk 00:00:52]} Qh2+ {[%clk
00:07:42]} {[%emt 00:00:06]} 48. Kxa3 {[%clk 00:01:00]} {[%emt 00:00:02]} Rf8
{[%clk 00:06:12]} {[%emt 00:01:40]} 49. g5 {[%clk 00:01:07]} {[%emt 00:00:03]}
hxg5 {[%clk 00:06:17]} {[%emt 00:00:05]} 50. hxg5 {[%clk 00:01:15]} {[%emt
00:00:02]} fxg5 {[%clk 00:06:20]} {[%emt 00:00:07]} 51. f6+ {[%clk 00:01:14]}
{[%emt 00:00:11]} g6 {[%clk 00:06:24]} {[%emt 00:00:06]} 52. Rd7+ {[%clk
00:01:00]} {[%emt 00:00:24]} Kh6 {[%clk 00:06:33]} {[%emt 00:00:02]} 53. Rd8
{[%clk 00:01:01]} {[%emt 00:00:09]} 1-0

[Event "KNSB Bekerfinale 2022-2023"]
[Site "Utrecht, Netherlands"]
[Date "2023.05.18"]
[Round "2.3"]
[White "Warmerdam, Max"]
[Black "Burg, Twan"]
[Result "1/2-1/2"]
[TimeControl "100 minutes + increment 10 seconds"]
[WhiteTitle "GM"]
[BlackTitle "GM"]
[WhiteFideId "1048104"]
[BlackFideId "1010697"]
[WhiteElo "2607"]
[BlackElo "2524"]

1. d4 {[%clk 01:39:27]} {[%emt 00:00:51]} Nf6 {[%clk 01:40:06]} {[%emt
00:00:15]} 2. c4 {[%clk 01:39:29]} {[%emt 00:00:08]} e6 {[%clk 01:40:14]}
{[%emt 00:00:03]} 3. Nf3 {[%clk 01:39:12]} {[%emt 00:00:26]} d5 {[%clk
01:40:19]} {[%emt 00:00:04]} 4. cxd5 {[%clk 01:39:11]} {[%emt 00:00:11]} exd5
{[%clk 01:40:18]} {[%emt 00:00:11]} 5. Nc3 {[%clk 01:39:16]} {[%emt 00:00:05]}
c6 {[%clk 01:39:33]} {[%emt 00:00:56]} 6. Bf4 {[%clk 01:39:11]} {[%emt
00:00:15]} Bd6 {[%clk 01:38:26]} {[%emt 00:01:16]} 7. Bxd6 {[%clk 01:39:14]}
{[%emt 00:00:07]} Qxd6 {[%clk 01:38:34]} {[%emt 00:00:02]} 8. e3 {[%clk
01:39:17]} {[%emt 00:00:07]} b6 {[%clk 01:26:09]} {[%emt 00:12:35]} 9. Be2
{[%clk 01:38:03]} {[%emt 00:01:24]} Ba6 {[%clk 01:25:33]} {[%emt 00:00:47]} 10.
O-O {[%clk 01:36:43]} {[%emt 00:01:29]} Bxe2 {[%clk 01:24:49]} {[%emt
00:00:55]} 11. Qxe2 {[%clk 01:36:47]} {[%emt 00:00:06]} O-O {[%clk 01:24:55]}
{[%emt 00:00:05]} 12. Rac1 {[%clk 01:34:50]} {[%emt 00:02:06]} Re8 {[%clk
01:22:36]} {[%emt 00:02:29]} 13. Rc2 {[%clk 01:32:21]} {[%emt 00:02:39]} a5
{[%clk 01:12:14]} {[%emt 00:10:32]} 14. Rfc1 {[%clk 01:26:54]} {[%emt
00:05:37]} Nbd7 {[%clk 01:12:19]} {[%emt 00:00:05]} 15. h3 {[%clk 01:26:50]}
{[%emt 00:00:14]} h6 {[%clk 01:07:43]} {[%emt 00:04:47]} 16. b3 {[%clk
01:22:34]} {[%emt 00:04:25]} Re6 {[%clk 01:02:35]} {[%emt 00:05:18]} 17. Na4
{[%clk 01:20:35]} {[%emt 00:02:09]} Qc7 {[%clk 01:01:21]} {[%emt 00:01:23]} 18.
Nb2 {[%clk 01:16:40]} {[%emt 00:04:05]} Qb7 {[%clk 00:59:03]} {[%emt 00:02:28]}
19. Nd3 {[%clk 01:14:56]} {[%emt 00:01:54]} Rc8 {[%clk 00:58:38]} {[%emt
00:00:35]} 20. Nde5 {[%clk 01:00:39]} {[%emt 00:14:27]} Nb8 {[%clk 00:58:15]}
{[%emt 00:00:33]} 21. Ne1 {[%clk 00:56:29]} {[%emt 00:04:20]} Nfd7 {[%clk
00:54:36]} {[%emt 00:03:49]} 22. N1d3 {[%clk 00:53:33]} {[%emt 00:03:06]} Nxe5
{[%clk 00:50:25]} {[%emt 00:04:23]} 23. Nxe5 {[%clk 00:51:58]} {[%emt
00:01:44]} Nd7 {[%clk 00:50:17]} {[%emt 00:00:17]} 24. Nd3 {[%clk 00:51:57]}
{[%emt 00:00:12]} Nb8 {[%clk 00:49:31]} {[%emt 00:00:57]} 25. Rc3 {[%clk
00:45:12]} {[%emt 00:06:55]} Nd7 {[%clk 00:45:18]} {[%emt 00:04:22]} 26. Nf4
{[%clk 00:40:00]} {[%emt 00:05:22]} Rd6 {[%clk 00:44:32]} {[%emt 00:00:57]} 27.
a3 {[%clk 00:39:11]} {[%emt 00:00:59]} Nf6 {[%clk 00:44:18]} {[%emt 00:00:24]}
28. R3c2 {[%clk 00:35:21]} {[%emt 00:04:01]} Ne4 {[%clk 00:42:52]} {[%emt
00:01:36]} 29. Nd3 {[%clk 00:30:08]} {[%emt 00:05:23]} Nf6 {[%clk 00:33:13]}
{[%emt 00:09:49]} 30. Qd1 {[%clk 00:26:01]} {[%emt 00:04:16]} Qa6 {[%clk
00:29:31]} {[%emt 00:03:52]} 31. Ne5 {[%clk 00:24:38]} {[%emt 00:01:33]} Qb5
{[%clk 00:29:36]} {[%emt 00:00:05]} 32. Qf1 {[%clk 00:23:15]} {[%emt 00:01:33]}
Qxb3 {[%clk 00:27:00]} {[%emt 00:02:45]} 33. Rc3 {[%clk 00:19:57]} {[%emt
00:03:29]} Qa4 {[%clk 00:26:23]} {[%emt 00:00:47]} 34. Qa6 {[%clk 00:18:30]}
{[%emt 00:01:38]} Rf8 {[%clk 00:22:09]} {[%emt 00:04:24]} 35. Nxc6 {[%clk
00:12:44]} {[%emt 00:05:55]} Ne4 {[%clk 00:21:48]} {[%emt 00:00:30]} 36. R3c2
{[%clk 00:12:50]} {[%emt 00:00:04]} Qxa3 {[%clk 00:17:40]} {[%emt 00:04:18]} 37.
Qxb6 {[%clk 00:12:55]} {[%emt 00:00:06]} a4 {[%clk 00:17:35]} {[%emt 00:00:15]}
38. Qb4 {[%clk 00:06:59]} {[%emt 00:06:06]} Qxb4 {[%clk 00:17:01]} {[%emt
00:00:43]} 39. Nxb4 {[%clk 00:07:07]} {[%emt 00:00:02]} a3 {[%clk 00:13:47]}
{[%emt 00:03:25]} 40. f3 {[%clk 00:04:35]} {[%emt 00:02:43]} Nf6 {[%clk
00:13:38]} {[%emt 00:00:17]} 41. Rc3 {[%clk 00:02:22]} {[%emt 00:02:24]} Rb6
{[%clk 00:12:23]} {[%emt 00:01:25]} 42. Na2 {[%clk 00:02:30]} {[%emt 00:00:01]}
Ra8 {[%clk 00:12:28]} {[%emt 00:00:05]} 43. Rc8+ {[%clk 00:02:39]} {[%emt
00:00:02]} Rxc8 {[%clk 00:12:34]} {[%emt 00:00:04]} 44. Rxc8+ {[%clk 00:02:47]}
{[%emt 00:00:01]} Kh7 {[%clk 00:12:39]} {[%emt 00:00:05]} 45. Rc3 {[%clk
00:02:56]} {[%emt 00:00:02]} Ra6 {[%clk 00:09:53]} {[%emt 00:02:54]} 46. Kf2
{[%clk 00:03:05]} {[%emt 00:00:02]} g5 {[%clk 00:09:25]} {[%emt 00:00:38]} 47.
g4 {[%clk 00:02:31]} {[%emt 00:00:43]} h5 {[%clk 00:09:16]} {[%emt 00:00:20]}
48. Ke2 {[%clk 00:02:30]} {[%emt 00:00:11]} hxg4 {[%clk 00:09:14]} {[%emt
00:00:12]} 49. hxg4 {[%clk 00:02:38]} {[%emt 00:00:02]} Ne8 {[%clk 00:08:02]}
{[%emt 00:01:21]} 50. Kd3 {[%clk 00:02:21]} {[%emt 00:00:27]} Rf6 {[%clk
00:07:11]} {[%emt 00:01:01]} 51. Ke2 {[%clk 00:02:20]} {[%emt 00:00:12]} Ra6
{[%clk 00:07:17]} {[%emt 00:00:03]} 52. Kd3 {[%clk 00:02:28]} {[%emt 00:00:02]}
Rf6 {[%clk 00:07:25]} {[%emt 00:00:02]} 53. Nb4 {[%clk 00:01:48]} {[%emt
00:00:50]} a2 {[%clk 00:07:16]} {[%emt 00:00:20]} 54. Ra3 {[%clk 00:01:55]}
{[%emt 00:00:02]} Rxf3 {[%clk 00:07:17]} {[%emt 00:00:10]} 55. Nxd5 {[%clk
00:01:57]} {[%emt 00:00:07]} Rf2 {[%clk 00:07:11]} {[%emt 00:00:17]} 56. Nc3
{[%clk 00:01:41]} {[%emt 00:00:26]} Nf6 {[%clk 00:06:57]} {[%emt 00:00:24]} 57.
Nxa2 {[%clk 00:01:04]} {[%emt 00:00:47]} Nxg4 {[%clk 00:06:54]} {[%emt
00:00:13]} 58. Nc3 {[%clk 00:01:12]} {[%emt 00:00:02]} Nf6 {[%clk 00:06:13]}
{[%emt 00:00:51]} 59. Ra1 {[%clk 00:00:48]} {[%emt 00:00:34]} Kg6 {[%clk
00:06:05]} {[%emt 00:00:18]} 60. Rg1 {[%clk 00:00:49]} {[%emt 00:00:08]} Kf5
{[%clk 00:05:17]} {[%emt 00:00:57]} 61. e4+ {[%clk 00:00:48]} {[%emt 00:00:12]}
Nxe4 {[%clk 00:04:39]} {[%emt 00:00:48]} 62. Nxe4 {[%clk 00:00:56]} {[%emt
00:00:02]} Rf3+ {[%clk 00:04:48]} 63. Ke2 {[%clk 00:01:05]} {[%emt 00:00:02]}
Kxe4 {[%clk 00:04:55]} {[%emt 00:00:03]} 64. Rxg5 {[%clk 00:01:14]} {[%emt
00:00:02]} Ke5 {[%emt 00:00:15]} 1/2-1/2

[Event "KNSB Bekerfinale 2022-2023"]
[Site "Utrecht, Netherlands"]
[Date "2023.05.18"]
[Round "2.4"]
[White "Bosch, Jeroen"]
[Black "Beerdsen, Thomas"]
[Result "1/2-1/2"]
[TimeControl "100 minutes + increment 10 seconds"]
[WhiteTitle "IM"]
[BlackTitle "IM"]
[WhiteFideId "1001280"]
[BlackFideId "1030108"]
[WhiteElo "2419"]
[BlackElo "2507"]

1. d4 {[%clk 01:40:17]} {[%emt 00:00:02]} Nf6 {[%clk 01:39:50]} {[%emt
00:00:30]} 2. c4 {[%clk 01:40:12]} {[%emt 00:00:16]} c6 {[%clk 01:39:45]}
{[%emt 00:00:15]} 3. Bf4 {[%clk 01:36:43]} {[%emt 00:03:39]} Qb6 {[%clk
01:39:16]} {[%emt 00:00:39]} 4. b3 {[%clk 01:21:56]} {[%emt 00:14:58]} d6
{[%clk 01:30:27]} {[%emt 00:08:59]} 5. Nf3 {[%clk 01:18:34]} {[%emt 00:03:33]}
Bg4 {[%clk 01:29:33]} {[%emt 00:01:02]} 6. Nbd2 {[%clk 01:17:21]} {[%emt
00:01:24]} Nbd7 {[%clk 01:21:54]} {[%emt 00:07:48]} 7. h3 {[%clk 01:13:51]}
{[%emt 00:03:41]} Bxf3 {[%clk 01:18:33]} {[%emt 00:03:30]} 8. Nxf3 {[%clk
01:13:52]} {[%emt 00:00:09]} e5 {[%clk 01:18:35]} {[%emt 00:00:08]} 9. Be3
{[%clk 01:13:08]} {[%emt 00:00:55]} d5 {[%clk 01:14:39]} {[%emt 00:04:06]} 10.
c5 {[%clk 01:09:48]} {[%emt 00:03:30]} Qc7 {[%clk 01:12:08]} {[%emt 00:02:40]}
11. b4 {[%clk 01:08:32]} {[%emt 00:01:27]} a5 {[%clk 01:09:49]} {[%emt
00:02:29]} 12. a3 {[%clk 01:08:15]} {[%emt 00:00:27]} Ne4 {[%clk 01:04:53]}
{[%emt 00:05:05]} 13. g3 {[%clk 01:02:08]} {[%emt 00:06:18]} Be7 {[%clk
00:58:46]} {[%emt 00:06:16]} 14. Bg2 {[%clk 01:00:28]} {[%emt 00:01:51]} Bf6
{[%clk 00:58:17]} {[%emt 00:00:39]} 15. O-O {[%clk 00:58:45]} {[%emt 00:01:53]}
O-O {[%clk 00:58:13]} {[%emt 00:00:13]} 16. Qc2 {[%clk 00:52:17]} {[%emt
00:06:38]} Rfe8 {[%clk 00:54:12]} {[%emt 00:04:11]} 17. Rad1 {[%clk 00:48:11]}
{[%emt 00:04:17]} axb4 {[%clk 00:47:37]} {[%emt 00:06:45]} 18. axb4 {[%clk
00:48:10]} {[%emt 00:00:10]} Ra3 {[%clk 00:45:13]} {[%emt 00:02:33]} 19. Rd3
{[%clk 00:46:14]} {[%emt 00:02:07]} Ra6 {[%clk 00:43:11]} {[%emt 00:02:12]} 20.
dxe5 {[%clk 00:39:16]} {[%emt 00:07:08]} Nxe5 {[%clk 00:39:48]} {[%emt
00:03:32]} 21. Bf4 {[%clk 00:38:23]} {[%emt 00:01:04]} Rea8 {[%clk 00:38:17]}
{[%emt 00:01:41]} 22. Re3 {[%clk 00:35:12]} {[%emt 00:03:21]} Ra2 {[%clk
00:30:51]} {[%emt 00:07:36]} 23. Qb1 {[%clk 00:33:25]} {[%emt 00:01:57]} Ra1
{[%clk 00:27:51]} {[%emt 00:03:10]} 24. Qxa1 {[%clk 00:31:12]} {[%emt
00:02:23]} Rxa1 {[%clk 00:27:54]} {[%emt 00:00:06]} 25. Rxa1 {[%clk 00:31:18]}
{[%emt 00:00:04]} g5 {[%clk 00:27:45]} {[%emt 00:00:19]} 26. Ra8+ {[%clk
00:19:17]} {[%emt 00:12:11]} Kg7 {[%clk 00:27:46]} {[%emt 00:00:09]} 27. Bxe5
{[%clk 00:19:16]} {[%emt 00:00:11]} Bxe5 {[%clk 00:27:50]} {[%emt 00:00:05]} 28.
Nxe5 {[%clk 00:19:09]} {[%emt 00:00:18]} Qxe5 {[%clk 00:27:55]} {[%emt
00:00:05]} 29. Bxe4 {[%clk 00:18:54]} {[%emt 00:00:26]} dxe4 {[%clk 00:28:00]}
{[%emt 00:00:05]} 30. Ra7 {[%clk 00:18:45]} {[%emt 00:00:19]} Qb8 {[%clk
00:26:17]} {[%emt 00:01:53]} 31. Ra1 {[%clk 00:18:28]} {[%emt 00:00:27]} Qe5
{[%clk 00:23:37]} {[%emt 00:02:49]} 32. Ra7 {[%clk 00:17:27]} {[%emt 00:01:12]}
Qb8 {[%clk 00:20:54]} {[%emt 00:02:53]} 33. Ra1 {[%clk 00:16:21]} {[%emt
00:01:16]} Qe5 {[%clk 00:17:12]} {[%emt 00:03:52]} 1/2-1/2

[Event "KNSB Bekerfinale 2022-2023"]
[Site "Utrecht, Netherlands"]
[Date "2023.05.18"]
[Round "2.5"]
[White "Lopez, Jasel"]
[Black "Lombaers, Peter"]
[Result "1-0"]
[TimeControl "100 minutes + increment 10 seconds"]
[WhiteTitle "IM"]
[BlackTitle "FM"]
[WhiteFideId "15900045"]
[BlackFideId "1032852"]
[WhiteElo "2401"]
[BlackElo "2368"]

1. d4 {[%clk 01:40:05]} {[%emt 00:00:14]} d5 {[%clk 01:40:13]} {[%emt
00:00:07]} 2. c4 {[%clk 01:39:36]} {[%emt 00:00:40]} c6 {[%clk 01:40:19]}
{[%emt 00:00:04]} 3. cxd5 {[%clk 01:36:42]} {[%emt 00:03:04]} cxd5 {[%clk
01:40:23]} {[%emt 00:00:06]} 4. Nc3 {[%clk 01:36:47]} {[%emt 00:00:05]} Nf6
{[%clk 01:40:25]} {[%emt 00:00:08]} 5. f3 {[%clk 01:36:53]} {[%emt 00:00:04]}
g6 {[%clk 01:31:05]} {[%emt 00:09:30]} 6. e4 {[%clk 01:32:39]} {[%emt
00:04:24]} dxe4 {[%clk 01:30:47]} {[%emt 00:00:28]} 7. fxe4 {[%clk 01:32:42]}
{[%emt 00:00:07]} Bg7 {[%clk 01:30:22]} {[%emt 00:00:35]} 8. Bb5+ {[%clk
01:28:49]} {[%emt 00:04:03]} Nfd7 {[%clk 01:19:17]} {[%emt 00:11:15]} 9. Nf3
{[%clk 01:28:04]} {[%emt 00:00:55]} O-O {[%clk 01:18:03]} {[%emt 00:01:24]} 10.
O-O {[%clk 01:22:16]} {[%emt 00:05:58]} a6 {[%clk 01:15:53]} {[%emt 00:02:19]}
11. Bc4 {[%clk 01:20:49]} {[%emt 00:01:38]} Nc6 {[%clk 01:11:24]} {[%emt
00:04:39]} 12. Be3 {[%clk 01:15:43]} {[%emt 00:05:16]} Nb6 {[%clk 00:48:22]}
{[%emt 00:23:12]} 13. Be2 {[%clk 01:03:27]} {[%emt 00:12:26]} Bg4 {[%clk
00:47:19]} {[%emt 00:01:13]} 14. d5 {[%clk 00:58:19]} {[%emt 00:05:18]} Bxf3
{[%clk 00:39:15]} {[%emt 00:08:15]} 15. gxf3 {[%clk 00:51:41]} {[%emt
00:06:48]} Ne5 {[%clk 00:38:14]} {[%emt 00:01:11]} 16. Qb3 {[%clk 00:51:29]}
{[%emt 00:00:22]} Ned7 {[%clk 00:35:08]} {[%emt 00:03:16]} 17. Rac1 {[%clk
00:42:05]} {[%emt 00:09:35]} Nc8 {[%clk 00:32:18]} {[%emt 00:03:01]} 18. f4
{[%clk 00:33:28]} {[%emt 00:08:47]} Nd6 {[%clk 00:26:39]} {[%emt 00:05:48]} 19.
e5 {[%clk 00:32:22]} {[%emt 00:01:16]} Nf5 {[%clk 00:26:41]} {[%emt 00:00:07]}
20. Bf2 {[%clk 00:31:55]} {[%emt 00:00:38]} Bh6 {[%clk 00:25:19]} {[%emt
00:01:32]} 21. Qb4 {[%clk 00:29:49]} {[%emt 00:02:16]} Rc8 {[%clk 00:22:24]}
{[%emt 00:03:04]} 22. Bg4 {[%clk 00:29:11]} {[%emt 00:00:48]} b5 {[%clk
00:19:47]} {[%emt 00:02:48]} 23. b3 {[%clk 00:25:18]} {[%emt 00:04:04]} Nb6
{[%clk 00:13:02]} {[%emt 00:06:53]} 24. Bxf5 {[%clk 00:19:04]} {[%emt
00:06:25]} gxf5 {[%clk 00:11:49]} {[%emt 00:01:23]} 25. Qd4 {[%clk 00:17:44]}
{[%emt 00:01:30]} b4 {[%clk 00:09:11]} {[%emt 00:02:47]} 26. Qxb6 {[%clk
00:17:28]} {[%emt 00:00:26]} Qxb6 {[%clk 00:08:23]} {[%emt 00:00:58]} 27. Bxb6
{[%clk 00:17:33]} {[%emt 00:00:06]} Rxc3 {[%clk 00:07:17]} {[%emt 00:01:15]} 28.
Rxc3 {[%clk 00:15:38]} {[%emt 00:02:05]} bxc3 {[%clk 00:07:23]} {[%emt
00:00:04]} 29. Kg2 {[%clk 00:15:43]} {[%emt 00:00:05]} Rb8 {[%clk 00:06:43]}
{[%emt 00:00:50]} 30. Be3 {[%clk 00:13:23]} {[%emt 00:02:30]} c2 {[%clk
00:05:56]} {[%emt 00:00:56]} 31. Rc1 {[%clk 00:13:10]} {[%emt 00:00:23]} Rd8
{[%clk 00:03:43]} {[%emt 00:02:23]} 32. Rxc2 {[%clk 00:13:08]} {[%emt
00:00:12]} Rxd5 {[%clk 00:03:51]} {[%emt 00:00:02]} 33. Rc6 {[%clk 00:13:05]}
{[%emt 00:00:13]} Bf8 {[%clk 00:02:00]} {[%emt 00:02:01]} 34. Rxa6 {[%clk
00:12:51]} {[%emt 00:00:25]} e6 {[%clk 00:02:05]} {[%emt 00:00:05]} 35. Rc6
{[%clk 00:11:44]} {[%emt 00:01:17]} Kg7 {[%clk 00:02:06]} {[%emt 00:00:10]} 36.
Kf3 {[%clk 00:11:42]} {[%emt 00:00:12]} Rd1 {[%clk 00:01:49]} {[%emt 00:00:27]}
37. Rc1 {[%clk 00:11:43]} {[%emt 00:00:09]} Rd7 {[%clk 00:01:27]} {[%emt
00:00:33]} 38. Ke2 {[%clk 00:10:47]} {[%emt 00:01:05]} Ba3 {[%clk 00:01:34]}
{[%emt 00:00:03]} 39. Rc4 {[%clk 00:10:24]} {[%emt 00:00:33]} Kg6 {[%clk
00:01:23]} {[%emt 00:00:21]} 40. Bc5 {[%clk 00:09:43]} {[%emt 00:00:51]} Bb2
{[%clk 00:01:10]} {[%emt 00:00:23]} 41. Rc2 {[%clk 00:09:44]} {[%emt 00:00:09]}
Ba1 {[%clk 00:01:12]} {[%emt 00:00:08]} 42. a4 {[%clk 00:07:11]} {[%emt
00:02:42]} 1-0